fUSD/lending_fUSD_20250211
["ID","MTS","AMOUNT","RATE_DAILY","PERIOD"]
[352692746,1739243445224,-3334.24,0.00011232,2]
[352692747,1739243445234,-500.0,0.00011232,2]
[352692748,1739243445243,-500.0,0.00011232,2]
[352692749,1739243445253,-500.0,0.00011232,2]
[352692750,1739243445263,-1566.6,0.00011232,2]
[352692751,1739243445272,-2186.35,0.00011232,2]
[352692752,1739243445284,-2023.57,0.00011232,2]
[352692753,1739243445295,-998.15,0.00011232,2]
[352692754,1739243445306,-977.14,0.00011232,2]
[352692755,1739243445315,-1750.17,0.00011232,2]
[352692756,1739243445325,-789.28,0.00011232,2]
[352692757,1739243445335,-1062.05,0.00011232,2]
[352692758,1739243445344,-500.0,0.00011232,2]
[352692759,1739243445355,-1381.26,0.00011232,2]
[352692760,1739243445364,-1313.96,0.00011232,2]
[352692761,1739243445374,-2726.37,0.00011232,2]
[352692762,1739243445383,-500.0,0.00011232,2]
[352692763,1739243445393,-765.97,0.00011232,2]
[352692764,1739243445403,-500.0,0.00011232,2]
[352692765,1739243445413,-2975.63,0.00011232,2]
[352692766,1739243445422,-507.72,0.00011232,2]
[352692767,1739243445432,-715.15,0.00011232,2]
[352692768,1739243445442,-500.0,0.00011232,2]
[352692769,1739243445451,-2017.24501214,0.00011232,2]
[352692775,1739243445991,-500.0,0.00010958,2]
[352692776,1739243446000,-28.63183249,0.00011095,2]
[352692777,1739243446012,-471.36816751,0.00011095,2]
[352692778,1739243446022,-183.47182849,0.00011232,2]
[352692779,1739243446040,-807.27706123,0.00011232,2]
[352692780,1739243446051,-938.99999995,0.00011232,2]
[352692781,1739243446078,-500.0,0.00010958,2]
[352692782,1739243446087,-500.0,0.00010958,2]
[352692783,1739243446096,-614.34609819,0.00011232,2]
[352692784,1739243446106,-500.0,0.00011232,2]
[352692785,1739243446116,-2270.84,0.00011232,2]
[352692786,1739243446125,-1603.59,0.00011232,2]
[352692787,1739243446135,-504.2065494,0.00011232,2]
[352692788,1739243446147,-18.5134506,0.00011232,2]
[352692789,1739243446156,-506.87,0.00011232,2]
[352692790,1739243446166,-500.0,0.00011232,2]
[352692791,1739243446176,-500.0,0.00011232,2]
[352692792,1739243446186,-500.0,0.00011232,2]
[352692793,1739243446196,-500.0,0.00011232,2]
[352692794,1739243446205,-500.0,0.00011232,2]
[352692795,1739243446215,-23065.48586031,0.00011253,2]
[352692796,1739243446224,-925.45,0.00011283,2]
[352692797,1739243446233,-500.0,0.00011306,2]
[352692798,1739243446242,-18277.13462953,0.00011346,2]
[352692799,1739243446251,-500.0,0.00011368,2]
[352692800,1739243446261,-925.45,0.00011368,2]
[352692801,1739243446270,-2279.08,0.00011368,2]
[352692802,1739243446280,-971.32,0.00011368,2]
[352692803,1739243446294,-880.59,0.00011368,2]
[352692804,1739243446303,-2986.46,0.00011368,2]
[352692805,1739243446312,-556.28,0.00011368,2]
[352692806,1739243446321,-801.34,0.00011368,2]
[352692807,1739243446331,-300.0,0.00011368,2]
[352692808,1739243446341,-538.712884,0.00011369,2]
[352692809,1739243446351,-612.626767,0.00011369,2]
[352692810,1739243446361,-500.0,0.00011369,2]
[352692811,1739243446370,-500.0,0.00011369,2]
[352692812,1739243446381,-500.0,0.00011369,2]
[352692813,1739243446391,-500.0,0.00011369,2]
[352692814,1739243446401,-500.0,0.00011369,2]
[352692815,1739243446411,-500.0,0.00011369,2]
[352692816,1739243446421,-500.0,0.00011369,2]
[352692817,1739243446431,-500.0,0.00011369,2]
[352692818,1739243446440,-500.0,0.00011369,2]
[352692819,1739243446450,-1525.41,0.00011369,2]
[352692820,1739243446459,-500.0,0.00011369,2]
[352692821,1739243446469,-583.86,0.00011369,2]
[352692822,1739243446479,-500.0,0.00011369,2]
[352692823,1739243446488,-500.0,0.00011369,2]
[352692824,1739243446498,-500.0,0.00011369,2]
[352692825,1739243446509,-441.4102328,0.00011369,2]
[352692826,1739243446519,-500.0,0.00011369,2]
[352692827,1739243446529,-500.0,0.00011369,2]
[352692828,1739243446539,-500.0,0.00011369,2]
[352692829,1739243446549,-500.0,0.00011369,2]
[352692830,1739243446559,-500.0,0.00011369,2]
[352692831,1739243446568,-500.0,0.00011369,2]
[352692832,1739243446578,-500.0,0.00011369,2]
[352692833,1739243446587,-500.0,0.00011369,2]
[352692834,1739243446596,-500.0,0.00011369,2]
[352692835,1739243446607,-516.13,0.00011369,2]
[352692836,1739243446617,-500.0,0.00011369,2]
[352692837,1739243446627,-500.0,0.00011369,2]
[352692838,1739243446637,-500.0,0.00011369,2]
[352692839,1739243446647,-500.0,0.00011369,2]
[352692840,1739243446656,-500.0,0.00011369,2]
[352692841,1739243446666,-500.0,0.00011369,2]
[352692842,1739243446677,-500.0,0.00011369,2]
[352692843,1739243446686,-500.0,0.00011369,2]
[352692844,1739243446696,-500.0,0.00011369,2]
[352692845,1739243446706,-500.0,0.00011369,2]
[352692846,1739243446715,-500.0,0.00011369,2]
[352692847,1739243446725,-500.0,0.00011369,2]
[352692848,1739243446734,-674.23,0.00011369,2]
[352692849,1739243446745,-500.0,0.00011369,2]
[352692850,1739243446755,-500.0,0.00011369,2]
[352692851,1739243446766,-500.0,0.00011369,2]
[352692852,1739243446776,-500.0,0.00011369,2]
[352692853,1739243446786,-500.0,0.00011369,2]
[352692854,1739243446796,-500.0,0.00011369,2]
[352692855,1739243446806,-600.31,0.00011369,2]
[352692856,1739243446816,-500.0,0.00011369,2]
[352692857,1739243446825,-500.0,0.00011369,2]
[352692858,1739243446835,-500.0,0.00011369,2]
[352692859,1739243446844,-535.99,0.00011369,2]
[352692860,1739243446855,-500.0,0.00011369,2]
[352692861,1739243446866,-500.0,0.00011369,2]
[352692862,1739243446876,-500.0,0.00011369,2]
[352692863,1739243446887,-500.0,0.00011369,2]
[352692864,1739243446897,-629.06,0.00011369,2]
[352692865,1739243446908,-500.0,0.00011369,2]
[352692866,1739243446918,-500.0,0.00011369,2]
[352692867,1739243446928,-500.0,0.00011369,2]
[352692868,1739243446938,-514.91,0.00011369,2]
[352692869,1739243446948,-500.0,0.00011369,2]
[352692870,1739243446958,-510.28,0.00011369,2]
[352692871,1739243446968,-500.0,0.00011369,2]
[352692872,1739243446978,-517.19,0.00011369,2]
[352692873,1739243446988,-500.0,0.00011369,2]
[352692874,1739243446997,-500.0,0.00011369,2]
[352692875,1739243447007,-500.0,0.00011369,2]
[352692876,1739243447016,-500.0,0.00011369,2]
[352692877,1739243447027,-500.0,0.00011369,2]
[352692878,1739243447037,-500.0,0.00011369,2]
[352692879,1739243447047,-500.0,0.00011369,2]
[352692880,1739243447058,-500.0,0.00011369,2]
[352692881,1739243447068,-647.89,0.00011369,2]
[352692882,1739243447078,-500.0,0.00011369,2]
[352692883,1739243447088,-500.0,0.00011369,2]
[352692884,1739243447100,-500.0,0.00011369,2]
[352692885,1739243447111,-500.0,0.00011369,2]
[352692886,1739243447122,-500.0,0.00011369,2]
[352692887,1739243447132,-574.67,0.00011369,2]
[352692888,1739243447142,-635.07,0.00011369,2]
[352692889,1739243447152,-500.0,0.00011369,2]
[352692890,1739243447163,-500.0,0.00011369,2]
[352692891,1739243447173,-500.0,0.00011369,2]
[352692892,1739243447183,-500.0,0.00011369,2]
[352692893,1739243447193,-500.0,0.00011369,2]
[352692894,1739243447203,-500.0,0.00011369,2]
[352692895,1739243447214,-500.0,0.00011369,2]
[352692896,1739243447224,-500.0,0.00011369,2]
[352692897,1739243447235,-500.0,0.00011369,2]
[352692898,1739243447246,-500.0,0.00011369,2]
[352692899,1739243447257,-662.05,0.00011369,2]
[352692900,1739243447267,-620.18,0.00011369,2]
[352692901,1739243447278,-538.62,0.00011369,2]
[352692902,1739243447291,-500.0,0.00011369,2]
[352692903,1739243447302,-651.26,0.00011369,2]
[352692904,1739243447313,-367.29016747,0.00011369,2]
[352692905,1739243447324,-500.0,0.00011369,2]
[352692906,1739243447333,-500.0,0.00011369,2]
[352692907,1739243447343,-500.0,0.00011369,2]
[352692908,1739243447354,-500.0,0.00011369,2]
[352692909,1739243447365,-500.0,0.00011369,2]
[352692910,1739243447375,-676.43,0.00011369,2]
[352692911,1739243447385,-500.0,0.00011369,2]
[352692912,1739243447394,-500.0,0.00011369,2]
[352692913,1739243447404,-520.3,0.00011369,2]
[352692914,1739243447414,-585.89,0.00011369,2]
[352692915,1739243447424,-527.81,0.00011369,2]
[352692916,1739243447433,-518.08,0.00011369,2]
[352692917,1739243447443,-618.07,0.00011369,2]
[352692918,1739243447452,-500.0,0.00011369,2]
[352692919,1739243447463,-500.0,0.00011369,2]
[352692920,1739243447472,-500.0,0.00011369,2]
[352692921,1739243447482,-500.0,0.00011369,2]
[352692922,1739243447491,-500.0,0.00011369,2]
[352692923,1739243447502,-688.42,0.00011369,2]
[352692924,1739243447512,-1092.2,0.00011369,2]
[352692925,1739243447522,-500.0,0.00011369,2]
[352692926,1739243447531,-500.0,0.00011369,2]
[352692927,1739243447541,-500.0,0.00011369,2]
[352692928,1739243447550,-568.58,0.00011369,2]
[352692929,1739243447559,-500.0,0.00011369,2]
[352692930,1739243447568,-928.02,0.00011369,2]
[352692931,1739243447578,-500.0,0.00011369,2]
[352692932,1739243447587,-632.3,0.00011369,2]
[352692933,1739243447597,-559.6,0.00011369,2]
[352692934,1739243447607,-500.0,0.00011369,2]
[352692935,1739243447617,-507.66,0.00011369,2]
[352692936,1739243447627,-500.0,0.00011369,2]
[352692937,1739243447638,-551.36,0.00011369,2]
[352692938,1739243447647,-500.0,0.00011369,2]
[352692939,1739243447657,-1207.41,0.00011369,2]
[352692940,1739243447667,-693.8,0.00011369,2]
[352692941,1739243447676,-742.18,0.00011369,2]
[352692942,1739243447686,-2020.37,0.00011369,2]
[352692943,1739243447695,-2142.73,0.00011369,2]
[352692944,1739243447705,-682.06,0.00011369,2]
[352692945,1739243447714,-500.0,0.00011369,2]
[352692946,1739243447724,-500.0,0.00011369,2]
[352692947,1739243447733,-580.34,0.00011369,2]
[352692948,1739243447744,-500.0,0.00011369,2]
[352692949,1739243447754,-500.0,0.00011369,2]
[352692950,1739243447764,-1097.22,0.00011369,2]
[352692951,1739243447774,-500.0,0.00011369,2]
[352692952,1739243447784,-1188.37,0.00011369,2]
[352692953,1739243447794,-546.08,0.00011369,2]
[352692954,1739243447803,-751.3,0.00011369,2]
[352692955,1739243447814,-730.22,0.00011369,2]
[352692956,1739243447824,-798.54,0.00011369,2]
[352692957,1739243447834,-500.0,0.00011369,2]
[352692958,1739243447844,-500.0,0.00011369,2]
[352692959,1739243447854,-1323.35,0.00011369,2]
[352692960,1739243447864,-758.33,0.00011369,2]
[352692961,1739243447874,-712.75,0.00011369,2]
[352692962,1739243447885,-1167.67,0.00011369,2]
[352692963,1739243447895,-500.0,0.00011369,2]
[352692964,1739243447905,-1125.63,0.00011369,2]
[352692965,1739243447915,-500.0,0.00011369,2]
[352692966,1739243447924,-500.0,0.00011369,2]
[352692967,1739243447933,-1568.05,0.00011369,2]
[352692968,1739243447943,-956.53,0.00011369,2]
[352692969,1739243447952,-500.0,0.00011369,2]
[352692970,1739243447962,-500.0,0.00011369,2]
[352692971,1739243447971,-1000.0,0.00011369,2]
[352692972,1739243447981,-1684.48,0.00011369,2]
[352692973,1739243447990,-880.65,0.00011369,2]
[352692974,1739243447999,-1592.16,0.00011369,2]
[352692975,1739243448009,-515.24,0.00011369,2]
[352692976,1739243448018,-500.0,0.00011369,2]
[352692977,1739243448028,-500.0,0.00011369,2]
[352692978,1739243448038,-500.0,0.00011369,2]
[352692979,1739243448048,-625.9,0.00011369,2]
[352692980,1739243448058,-1435.65,0.00011369,2]
[352692981,1739243448068,-527.13,0.00011369,2]
[352692982,1739243448078,-1221.9,0.00011369,2]
[352692983,1739243448088,-1540.12,0.00011369,2]
[352692984,1739243448098,-1279.2,0.00011369,2]
[352692985,1739243448108,-132.07339141,0.00011369,2]
[352692986,1739243448125,-1703.36660859,0.00011369,2]
[352692987,1739243448136,-810.61,0.00011369,2]
[352692988,1739243448147,-500.0,0.00011369,2]
[352692989,1739243448158,-1034.4,0.00011369,2]
[352692990,1739243448170,-1942.98,0.00011369,2]
[352692991,1739243448181,-500.0,0.00011369,2]
[352692992,1739243448191,-1428.04,0.00011369,2]
[352692993,1739243448201,-1015.75,0.00011369,2]
[352692994,1739243448211,-500.0,0.00011369,2]
[352692995,1739243448221,-1408.25,0.00011369,2]
[352692996,1739243448230,-950.27,0.00011369,2]
[352692997,1739243448239,-500.0,0.00011369,2]
[352692998,1739243448250,-500.0,0.00011369,2]
[352692999,1739243448260,-2788.47,0.00011369,2]
[352693000,1739243448270,-2038.43,0.00011369,2]
[352693001,1739243448283,-1095.26,0.00011369,2]
[352693002,1739243448295,-1019.04,0.00011369,2]
[352693003,1739243448307,-724.02,0.00011369,2]
[352693004,1739243448318,-1495.94,0.00011369,2]
[352693005,1739243448330,-945.38,0.00011369,2]
[352693006,1739243448339,-2370.99,0.00011369,2]
[352693007,1739243448351,-1275.55,0.00011369,2]
[352693008,1739243448422,-2670.99,0.00011369,2]
[352693009,1739243448433,-500.0,0.00011369,2]
[352693010,1739243448443,-1646.85,0.00011369,2]
[352693011,1739243448453,-847.47,0.00011369,2]
[352693012,1739243448463,-618.73,0.00011369,2]
[352693013,1739243448473,-636.7,0.00011369,2]
[352693014,1739243448483,-1797.12,0.00011369,2]
[352693015,1739243448493,-500.0,0.00011369,2]
[352693016,1739243448503,-6121.58,0.00011369,2]
[352693017,1739243448513,-500.0,0.00011369,2]
[352693018,1739243448523,-1741.11,0.00011369,2]
[352693019,1739243448533,-500.0,0.00011369,2]
[352693020,1739243448544,-1774.15,0.00011369,2]
[352693021,1739243448555,-500.0,0.00011369,2]
[352693022,1739243448565,-2263.67,0.00011369,2]
[352693023,1739243448574,-933.45,0.00011369,2]
[352693024,1739243448584,-420.81590225,0.00011369,2]
[352693025,1739243448594,-1068.58,0.00011369,2]
[352693026,1739243448606,-2835.69,0.00011369,2]
[352693027,1739243448616,-873.61,0.00011369,2]
[352693028,1739243448627,-500.0,0.00011369,2]
[352693029,1739243448637,-500.0,0.00011369,2]
[352693030,1739243448648,-1702.45,0.00011369,2]
[352693031,1739243448659,-500.0,0.00011369,2]
[352693032,1739243448670,-1200.54,0.00011369,2]
[352693033,1739243448681,-1866.89,0.00011369,2]
[352693034,1739243448692,-2642.36,0.00011369,2]
[352693035,1739243448703,-651.26945188,0.00011369,2]
[352693036,1739243448717,-350.32372873,0.00011369,2]
[352693037,1739243448730,-330.05681939,0.00011369,2]
[352693038,1739243448740,-324.94318061,0.00011369,2]
[352693039,1739243449206,-500.0,0.00010958,2]
[352693040,1739243449217,-500.0,0.00010958,2]
[352693041,1739243449226,-500.0,0.00010958,2]
[352693042,1739243449236,-500.0,0.00011095,2]
[352693043,1739243449247,-500.0,0.00011095,2]
[352693044,1739243449257,-500.0,0.00011095,2]
[352693045,1739243449268,-500.0,0.00011095,2]
[352693046,1739243449279,-500.0,0.00011095,2]
[352693047,1739243449295,-500.0,0.00011232,2]
[352693048,1739243449305,-500.0,0.00011232,2]
[352693049,1739243449315,-500.0,0.00011232,2]
[352693050,1739243449325,-500.0,0.00011232,2]
[352693051,1739243449335,-1208.10681939,0.00011369,2]
[352693052,1739243449344,-1377.62956169,0.00011369,2]
[352693079,1739244632187,-503.59,8.3e-05,2]
[352693080,1739244632197,-150.0,8.384e-05,2]
[352693081,1739244632207,-500.0,8.468e-05,2]
[352693082,1739244632217,-150.0,8.67e-05,2]
[352693083,1739244632226,-300.0,8.972e-05,2]
[352693084,1739244632235,-150.0,8.972e-05,2]
[352693085,1739244632246,-3649.32999996,8.973e-05,2]
[352693086,1739244632258,-1350.67000004,8.973e-05,2]
[352693087,1739244632267,-415.93000046,8.973e-05,2]
[352693088,1739244632278,-970.77143134,8.973e-05,2]
[352693089,1739244632297,-891.00211688,8.973e-05,2]
[352693090,1739244632315,-996.59053784,8.973e-05,2]
[352693091,1739244632332,-3954.81606157,8.973e-05,2]
[352693092,1739244632344,-880.50000006,8.973e-05,2]
[352693093,1739244632423,-264.69503277,8.973e-05,2]
[352693094,1739244632480,-1157.15474,8.973e-05,2]
[352693095,1739244632492,-26276.91881602,8.973e-05,2]
[352693096,1739244632546,-790.79000001,8.973e-05,2]
[352693097,1739244632558,-2085.80736305,8.973e-05,2]
[352693098,1739244632568,-500.0,9.13e-05,2]
[352693099,1739244632578,-279.14408586,9.13e-05,2]
[352693100,1739244632592,-220.85591414,9.13e-05,2]
[352693101,1739244632602,-150.0,9.13e-05,2]
[352693102,1739244632611,-49.90760867,9.835e-05,2]
[352693103,1739244632622,-379.97239133,9.835e-05,2]
[352693104,1739244632631,-420.0,9.869e-05,2]
[352693105,1739244632640,-137.5647705,9.882e-05,2]
[352693106,1739244632677,-364.1352295,9.882e-05,2]
[352693107,1739244632686,-586.37453862,9.9e-05,2]
[352693113,1739244637930,-438.38724935,9.9e-05,2]
[352693114,1739244637942,-426.13126208,9.9e-05,2]
[352693115,1739244637988,-1109.58021,9.9e-05,2]
[352693116,1739244637999,-485.38688107,9.9e-05,2]
[352693117,1739244638008,-569.9336701,9.999e-05,2]
[352693118,1739244638017,-5582.57378326,0.0001,2]
[352693119,1739244638028,-2437.59954358,0.0001,2]
[352693120,1739244638053,-1287.60220752,0.0001,2]
[352693121,1739244638064,-544.82978965,0.0001,2]
[352693122,1739244638074,-6066.0,0.0001,2]
[352693123,1739244638085,-7194.21140675,0.0001,2]
[352693124,1739244638096,-455.625,0.0001,2]
[352693125,1739244638107,-12000.00000015,0.0001,2]
[352693126,1739244638124,-2767.36084533,0.0001,2]
[352693127,1739244638135,-487.64485839,0.0001,2]
[352693128,1739244638398,-417.93362683,0.0001,2]
[352693129,1739244638725,-20000.0,0.0001,2]
[352693130,1739244638736,-1756.33430446,0.0001,2]
[352693131,1739244638747,-1040.67,0.0001,2]
[352693132,1739244638765,-53884.89808417,0.0001,2]
[352693133,1739244638777,-1838.98,0.0001,2]
[352693135,1739244639998,-1032.91165572,0.0001,2]
[352693136,1739244640010,-63340.78169501,0.0001,2]
[352693137,1739244640021,-222741.22819927,0.0001,2]
[352693138,1739244640032,-149379.35763728,0.0001,2]
[352693139,1739244640043,-397.66399606,0.0001,2]
[352693140,1739244640053,-314.88635496,0.0001,2]
[352693141,1739244640064,-500.0,0.0001,2]
[352693142,1739244640100,-300.0,0.0001,2]
[352693143,1739244640125,-2876.61124744,0.0001,2]
[352693144,1739244640136,-1116.06058986,0.0001,2]
[352693145,1739244640179,-18232.898044,0.0001,2]
[352693146,1739244640190,-9096.64373114,0.0001,2]
[352693147,1739244640200,-8947.21879473,0.0001,2]
[352693148,1739244640212,-8943.78386462,0.0001,2]
[352693149,1739244640223,-9077.54866152,0.0001,2]
[352693150,1739244640234,-8943.84023489,0.0001,2]
[352693151,1739244640245,-783.34611875,0.0001,2]
[352693159,1739244643048,-60635.46458784,0.0001,2]
[352693160,1739244643060,-48095.55366071,0.0001,2]
[352693161,1739244643072,-12204.53166506,0.0001,2]
[352693162,1739244643106,-14769.04104958,0.0001,2]
[352693163,1739244643117,-19852.51822778,0.0001,2]
[352693164,1739244643129,-5197.04994013,0.0001,2]
[352693167,1739244643164,-506.62630079,0.0001,2]
[352693168,1739244643176,-352.72799642,0.0001,2]
[352693169,1739244643187,-2276.54984636,0.0001,2]
[352693170,1739244643198,-511.57989057,0.0001,2]
[352693171,1739244643208,-631.44,0.0001,2]
[352693172,1739244643219,-1356.4999996,0.0001,2]
[352693173,1739244643233,-1062551.06488481,0.0001,2]
[352693174,1739244643243,-75048.71742898,0.0001,2]
[352693175,1739244643252,-241.94536207,0.0001,2]
[352693176,1739244643262,-178.47404041,0.0001,2]
[352693177,1739244643271,-157.49,0.00010137,2]
[352693178,1739244643281,-1000.0,0.00010147,2]
[352693179,1739244643290,-250.0,0.00010301,2]
[352693180,1739244643299,-23900.0,0.0001039,2]
[352693181,1739244643309,-503.59,0.00010564,2]
[352693182,1739244643318,-250.0,0.00010593,2]
[352693183,1739244643327,-54553.73703819,0.000108,2]
[352693184,1739244643335,-274.67903969,0.000109,2]
[352693185,1739244643344,-274.67903966,0.000109,2]
[352693186,1739244643354,-14612.50436768,0.00010957,2]
[352693187,1739244643362,-500.0,0.00010958,2]
[352693188,1739244643371,-221.91115446,0.00010958,2]
[352693189,1739244643380,-501.16991906,0.00010958,2]
[352693190,1739244643389,-499.59488612,0.00010958,2]
[352693191,1739244643397,-501.23182657,0.00010958,2]
[352693192,1739244643406,-502.00134901,0.00010958,2]
[352693193,1739244643415,-501.67691997,0.00010958,2]
[352693194,1739244643423,-501.4675068,0.00010958,2]
[352693195,1739244643432,-502.33035886,0.00010958,2]
[352693196,1739244643441,-501.85250831,0.00010958,2]
[352693197,1739244643450,-501.25082188,0.00010958,2]
[352693198,1739244643459,-500.0,0.00010958,2]
[352693199,1739244643467,-500.0,0.00010958,2]
[352693200,1739244643476,-500.0,0.00010958,2]
[352693201,1739244643485,-394.14076538,0.00010958,2]
[352693202,1739244643494,-500.0,0.00010958,2]
[352693203,1739244643503,-500.0,0.00010958,2]
[352693204,1739244643512,-500.0,0.00010958,2]
[352693205,1739244643521,-500.0,0.00010958,2]
[352693206,1739244643531,-500.0,0.00010958,2]
[352693207,1739244643540,-500.0,0.00010958,2]
[352693208,1739244643549,-500.0,0.00010958,2]
[352693209,1739244643558,-500.0,0.00010958,2]
[352693210,1739244643567,-520.71466197,0.00010958,2]
[352693211,1739244643576,-569.9835191,0.00010958,2]
[352693213,1739244643585,-511.24981069,0.00010958,2]
[352693214,1739244643595,-500.0,0.00010958,2]
[352693215,1739244643604,-500.0,0.00010958,2]
[352693216,1739244643613,-500.0,0.00010958,2]
[352693218,1739244643623,-500.0,0.00010958,2]
[352693220,1739244643632,-500.0,0.00010958,2]
[352693221,1739244643641,-500.0,0.00010958,2]
[352693222,1739244643650,-454.3763876,0.00010958,2]
[352693223,1739244643659,-500.0,0.00010958,2]
[352693224,1739244643668,-500.0,0.00010958,2]
[352693225,1739244643680,-500.0,0.00010958,2]
[352693226,1739244643689,-500.0,0.00010958,2]
[352693227,1739244643699,-500.0,0.00010958,2]
[352693228,1739244643708,-500.0,0.00010958,2]
[352693229,1739244643717,-500.0,0.00010958,2]
[352693230,1739244643726,-500.0,0.00010958,2]
[352693231,1739244643735,-630.15,0.00010958,2]
[352693232,1739244643744,-500.0,0.00010958,2]
[352693233,1739244643753,-500.0,0.00010958,2]
[352693234,1739244643762,-500.0,0.00010958,2]
[352693235,1739244643772,-518.85,0.00010958,2]
[352693236,1739244643781,-501.46902258,0.00010958,2]
[352693237,1739244643790,-500.0,0.00010958,2]
[352693238,1739244643799,-767.4,0.00010958,2]
[352693239,1739244643808,-500.0,0.00010958,2]
[352693240,1739244643817,-675.01,0.00010958,2]
[352693241,1739244643826,-500.0,0.00010958,2]
[352693242,1739244643835,-559.09,0.00010958,2]
[352693243,1739244643845,-1082.05,0.00010958,2]
[352693244,1739244643854,-629.64,0.00010958,2]
[352693245,1739244643863,-525.34,0.00010958,2]
[352693246,1739244643872,-582.38,0.00010958,2]
[352693247,1739244643881,-500.0,0.00010958,2]
[352693248,1739244643890,-1012.06,0.00010958,2]
[352693249,1739244643899,-500.0,0.00010958,2]
[352693250,1739244643908,-500.0,0.00010958,2]
[352693251,1739244643918,-1382.07,0.00010958,2]
[352693252,1739244643927,-833.78,0.00010958,2]
[352693253,1739244643935,-712.4,0.00010958,2]
[352693254,1739244643944,-500.0,0.00010958,2]
[352693255,1739244643953,-500.0,0.00010958,2]
[352693256,1739244643962,-548.51,0.00010958,2]
[352693257,1739244643971,-500.0,0.00010958,2]
[352693258,1739244643981,-500.0,0.00010958,2]
[352693259,1739244643990,-728.21,0.00010958,2]
[352693260,1739244643999,-696.02,0.00010958,2]
[352693261,1739244644008,-500.0,0.00010958,2]
[352693262,1739244644017,-586.34,0.00010958,2]
[352693263,1739244644026,-782.46,0.00010958,2]
[352693264,1739244644035,-500.0,0.00010958,2]
[352693265,1739244644044,-500.0,0.00010958,2]
[352693266,1739244644053,-500.0,0.00010958,2]
[352693267,1739244644062,-500.0,0.00010958,2]
[352693268,1739244644071,-500.0,0.00010958,2]
[352693269,1739244644080,-776.51,0.00010958,2]
[352693270,1739244644089,-500.0,0.00010958,2]
[352693271,1739244644099,-728.88,0.00010958,2]
[352693272,1739244644108,-500.0,0.00010958,2]
[352693273,1739244644117,-500.0,0.00010958,2]
[352693274,1739244644126,-774.22,0.00010958,2]
[352693275,1739244644135,-500.0,0.00010958,2]
[352693276,1739244644145,-500.0,0.00010958,2]
[352693277,1739244644154,-604.36,0.00010958,2]
[352693278,1739244644164,-500.0,0.00010958,2]
[352693279,1739244644174,-157.988116,0.00010958,2]
[352693280,1739244644183,-500.0,0.00010958,2]
[352693281,1739244644192,-500.0,0.00010958,2]
[352693282,1739244644201,-689.1,0.00010958,2]
[352693283,1739244644210,-500.0,0.00010958,2]
[352693284,1739244644218,-500.0,0.00010958,2]
[352693285,1739244644227,-500.0,0.00010958,2]
[352693286,1739244644236,-500.0,0.00010958,2]
[352693287,1739244644245,-688.83,0.00010958,2]
[352693288,1739244644254,-500.0,0.00010958,2]
[352693289,1739244644262,-871.829796,0.00010958,2]
[352693290,1739244644271,-500.0,0.00010958,2]
[352693291,1739244644280,-500.0,0.00010958,2]
[352693292,1739244644289,-951.022489,0.00010958,2]
[352693293,1739244644298,-799.64,0.00010958,2]
[352693294,1739244644306,-500.0,0.00010958,2]